[Event "Rapid Tournament"]
[Site "Biel, Switzerland"]
[Date "2021.07.25"]
[Round "7.3"]
[White "Lagarde, Maxime"]
[Black "Nihal, Sarin"]
[Result "0-1"]
[TimeControl "15min + 5 sec per move"]
[WhiteTitle "GM"]
[BlackTitle "GM"]
[WhiteFideId "662399"]
[BlackFideId "25092340"]
[WhiteElo "2684"]
[BlackElo "2418"]

1. e4 {[%clk 00:15:09]} e5 {[%clk 00:15:08]} {[%emt 00:00:03]} 2. Bc4 {[%clk
00:15:12]} {[%emt 00:00:02]} Nf6 {[%clk 00:14:59]} {[%emt 00:00:13]} 3. d3
{[%clk 00:15:15]} {[%emt 00:00:02]} Nc6 {[%clk 00:14:53]} {[%emt 00:00:12]} 4.
Nc3 {[%clk 00:15:17]} {[%emt 00:00:03]} Bb4 {[%clk 00:14:33]} {[%emt 00:00:26]}
5. Nge2 {[%clk 00:15:15]} {[%emt 00:00:07]} d5 {[%clk 00:14:37]} {[%emt
00:00:01]} 6. exd5 {[%clk 00:15:16]} {[%emt 00:00:03]} Nxd5 {[%clk 00:14:41]}
{[%emt 00:00:01]} 7. O-O {[%clk 00:15:13]} {[%emt 00:00:08]} Be6 {[%clk
00:14:42]} {[%emt 00:00:03]} 8. f4 {[%clk 00:12:31]} {[%emt 00:02:47]} Nxc3
{[%clk 00:14:40]} {[%emt 00:00:08]} 9. bxc3 {[%clk 00:12:31]} {[%emt 00:00:05]}
Bc5+ {[%clk 00:14:44]} 10. Kh1 {[%clk 00:12:24]} {[%emt 00:00:12]} Bxc4 {[%clk
00:14:47]} {[%emt 00:00:02]} 11. dxc4 {[%clk 00:12:27]} {[%emt 00:00:02]} Qxd1
{[%clk 00:13:00]} {[%emt 00:01:52]} 12. Rxd1 {[%clk 00:12:31]} {[%emt
00:00:01]} f6 {[%clk 00:13:04]} {[%emt 00:00:01]} 13. Ng3 {[%clk 00:12:09]}
{[%emt 00:00:26]} Rd8 {[%clk 00:12:29]} {[%emt 00:00:41]} 14. Rf1 {[%clk
00:11:26]} {[%emt 00:00:48]} O-O {[%clk 00:12:16]} {[%emt 00:00:17]} 15. Ne4
{[%clk 00:11:29]} {[%emt 00:00:03]} Be7 {[%clk 00:12:12]} {[%emt 00:00:09]} 16.
f5 {[%clk 00:11:23]} {[%emt 00:00:12]} Na5 {[%clk 00:12:00]} {[%emt 00:00:17]}
17. c5 {[%clk 00:11:11]} {[%emt 00:00:16]} Rd5 {[%clk 00:12:04]} 18. Rb1 {[%clk
00:09:46]} {[%emt 00:01:32]} b6 {[%clk 00:12:08]} 19. cxb6 {[%clk 00:09:14]}
{[%emt 00:00:36]} axb6 {[%clk 00:11:25]} {[%emt 00:00:48]} 20. g4 {[%clk
00:09:12]} {[%emt 00:00:07]} Nc4 {[%clk 00:11:23]} {[%emt 00:00:07]} 21. Rg1
{[%clk 00:08:06]} {[%emt 00:01:12]} Nd6 {[%clk 00:10:39]} {[%emt 00:00:49]} 22.
Nxd6 {[%clk 00:07:06]} {[%emt 00:01:05]} Bxd6 {[%clk 00:10:42]} {[%emt
00:00:02]} 23. Be3 {[%clk 00:06:56]} {[%emt 00:00:15]} Ra5 {[%clk 00:06:51]}
{[%emt 00:03:56]} 24. Ra1 {[%clk 00:04:57]} {[%emt 00:02:03]} Ra3 {[%clk
00:05:34]} {[%emt 00:01:22]} 25. Bd2 {[%clk 00:04:50]} {[%emt 00:00:12]} h6
{[%clk 00:05:38]} {[%emt 00:00:02]} 26. h4 {[%clk 00:04:51]} {[%emt 00:00:04]}
Ra4 {[%clk 00:05:41]} {[%emt 00:00:02]} 27. Rg2 {[%clk 00:04:06]} {[%emt
00:00:49]} Rfa8 {[%clk 00:04:57]} {[%emt 00:00:49]} 28. Rag1 {[%clk 00:03:46]}
{[%emt 00:00:26]} Kf7 {[%clk 00:05:02]} 29. Be1 {[%clk 00:03:27]} {[%emt
00:00:24]} Rxa2 {[%clk 00:04:49]} {[%emt 00:00:18]} 30. Re2 {[%clk 00:03:18]}
{[%emt 00:00:14]} R2a4 {[%clk 00:04:42]} {[%emt 00:00:12]} 31. Kh2 {[%clk
00:02:18]} {[%emt 00:01:05]} Rf4 {[%clk 00:04:01]} {[%emt 00:00:46]} 32. Kh3
{[%clk 00:02:10]} {[%emt 00:00:13]} Raa4 {[%clk 00:03:57]} {[%emt 00:00:09]} 33.
Bd2 {[%clk 00:02:01]} {[%emt 00:00:14]} Rf3+ {[%clk 00:03:26]} {[%emt
00:00:36]} 34. Rg3 {[%clk 00:02:05]} {[%emt 00:00:01]} h5 {[%clk 00:02:08]}
{[%emt 00:01:23]} 35. gxh5 {[%clk 00:01:55]} {[%emt 00:00:15]} Rxf5 {[%clk
00:02:11]} {[%emt 00:00:01]} 36. Reg2 {[%clk 00:01:53]} {[%emt 00:00:07]} Bf8
{[%clk 00:02:15]} {[%emt 00:00:02]} 37. Rd3 {[%clk 00:01:38]} {[%emt 00:00:21]}
Rxh5 {[%clk 00:01:51]} {[%emt 00:00:28]} 38. Rg4 {[%clk 00:01:41]} {[%emt
00:00:01]} Rxg4 {[%clk 00:01:36]} {[%emt 00:00:20]} 39. Kxg4 {[%clk 00:01:45]}
{[%emt 00:00:01]} Kg6 {[%clk 00:01:40]} {[%emt 00:00:01]} 40. Rd7 {[%clk
00:01:49]} f5+ {[%clk 00:01:40]} {[%emt 00:00:06]} 41. Kg3 {[%clk 00:01:27]}
{[%emt 00:00:26]} Bd6 {[%clk 00:01:43]} {[%emt 00:00:01]} 42. Bg5 {[%clk
00:01:30]} {[%emt 00:00:02]} e4+ {[%clk 00:01:26]} {[%emt 00:00:23]} 43. Kh3
{[%clk 00:01:29]} {[%emt 00:00:06]} Rh8 {[%clk 00:01:13]} {[%emt 00:00:18]} 44.
Be3 {[%clk 00:01:05]} {[%emt 00:00:29]} Re8 {[%clk 00:00:20]} {[%emt 00:00:58]}
45. h5+ {[%clk 00:00:44]} {[%emt 00:00:26]} Kxh5 {[%clk 00:00:24]} {[%emt
00:00:02]} 46. Rxg7 {[%clk 00:00:47]} {[%emt 00:00:01]} f4 {[%clk 00:00:28]} 47.
Bd4 {[%clk 00:00:13]} {[%emt 00:00:39]} e3 {[%clk 00:00:18]} {[%emt 00:00:15]}
48. Rg1 {[%clk 00:00:09]} {[%emt 00:00:09]} f3 {[%clk 00:00:17]} {[%emt
00:00:06]} 49. Rb1 {[%clk 00:00:12]} {[%emt 00:00:02]} Re4 {[%clk 00:00:10]}
{[%emt 00:00:12]} 50. Bf6 {[%clk 00:00:07]} {[%emt 00:00:10]} e2 {[%clk
00:00:14]} {[%emt 00:00:01]} 0-1

[Event "Rapid Tournament"]
[Site "Biel, Switzerland"]
[Date "2021.07.25"]
[Round "7.4"]
[White "Kamsky, Gata"]
[Black "Keymer, Vincent"]
[Result "0-1"]
[TimeControl "15min + 5 sec per move"]
[WhiteTitle "GM"]
[BlackTitle "GM"]
[WhiteFideId "2000024"]
[BlackFideId "12940690"]
[WhiteElo "2701"]
[BlackElo "2543"]

1. d4 {[%clk 00:15:07]} {[%emt 00:00:02]} Nf6 {[%clk 00:15:09]} {[%emt
00:00:02]} 2. Nf3 {[%clk 00:15:09]} {[%emt 00:00:02]} e6 {[%clk 00:15:12]}
{[%emt 00:00:03]} 3. Bf4 {[%clk 00:14:52]} {[%emt 00:00:21]} c5 {[%clk
00:15:15]} {[%emt 00:00:02]} 4. e3 {[%clk 00:14:49]} {[%emt 00:00:07]} Nc6
{[%clk 00:15:18]} {[%emt 00:00:02]} 5. c3 {[%clk 00:14:01]} {[%emt 00:00:53]}
h6 {[%clk 00:15:22]} {[%emt 00:00:02]} 6. Ne5 {[%clk 00:12:45]} {[%emt
00:01:21]} g5 {[%clk 00:12:02]} {[%emt 00:03:25]} 7. Bg3 {[%clk 00:12:39]}
{[%emt 00:00:10]} Ne4 {[%clk 00:11:45]} {[%emt 00:00:23]} 8. Qf3 {[%clk
00:12:16]} {[%emt 00:00:27]} Nd6 {[%clk 00:09:39]} {[%emt 00:02:11]} 9. Bd3
{[%clk 00:09:52]} {[%emt 00:02:29]} cxd4 {[%clk 00:06:42]} {[%emt 00:03:03]} 10.
exd4 {[%clk 00:09:49]} {[%emt 00:00:07]} Nf5 {[%clk 00:04:56]} {[%emt
00:01:52]} 11. Nd2 {[%clk 00:07:32]} {[%emt 00:02:22]} Bg7 {[%clk 00:04:08]}
{[%emt 00:00:54]} 12. O-O {[%clk 00:05:31]} {[%emt 00:02:05]} d5 {[%clk
00:03:21]} {[%emt 00:00:53]} 13. Bxf5 {[%clk 00:04:08]} {[%emt 00:01:27]} exf5
{[%clk 00:03:24]} {[%emt 00:00:02]} 14. Nxc6 {[%clk 00:04:11]} {[%emt
00:00:01]} bxc6 {[%clk 00:03:28]} {[%emt 00:00:02]} 15. Rfe1+ {[%clk 00:04:15]}
Kf8 {[%clk 00:03:15]} {[%emt 00:00:19]} 16. h3 {[%clk 00:02:57]} {[%emt
00:01:23]} f4 {[%clk 00:03:17]} {[%emt 00:00:03]} 17. Bh2 {[%clk 00:03:01]}
{[%emt 00:00:01]} Bf5 {[%clk 00:03:05]} {[%emt 00:00:18]} 18. Qe2 {[%clk
00:02:44]} {[%emt 00:00:22]} f6 {[%clk 00:02:28]} {[%emt 00:00:42]} 19. Nb3
{[%clk 00:02:45]} {[%emt 00:00:04]} Kf7 {[%clk 00:02:24]} {[%emt 00:00:09]} 20.
Nc5 {[%clk 00:02:48]} {[%emt 00:00:01]} Re8 {[%clk 00:02:12]} {[%emt 00:00:18]}
21. Qh5+ {[%clk 00:01:49]} {[%emt 00:01:04]} Bg6 {[%clk 00:02:08]} {[%emt
00:00:10]} 22. Qg4 {[%clk 00:01:53]} {[%emt 00:00:01]} Qd6 {[%clk 00:02:05]}
{[%emt 00:00:08]} 23. Qd7+ {[%clk 00:01:41]} {[%emt 00:00:16]} Qxd7 {[%clk
00:02:07]} {[%emt 00:00:04]} 24. Nxd7 {[%clk 00:01:45]} {[%emt 00:00:01]} a5
{[%clk 00:01:46]} {[%emt 00:00:25]} 25. a4 {[%clk 00:01:33]} {[%emt 00:00:16]}
Bf5 {[%clk 00:01:08]} {[%emt 00:00:44]} 26. Nc5 {[%clk 00:01:37]} {[%emt
00:00:01]} Bf8 {[%clk 00:01:10]} {[%emt 00:00:03]} 27. f3 {[%clk 00:01:14]}
{[%emt 00:00:28]} Rxe1+ {[%clk 00:00:15]} {[%emt 00:01:00]} 28. Rxe1 {[%clk
00:01:18]} {[%emt 00:00:01]} Bxc5 {[%clk 00:00:17]} {[%emt 00:00:03]} 29. dxc5
{[%clk 00:01:21]} {[%emt 00:00:02]} Bc2 {[%clk 00:00:21]} {[%emt 00:00:01]} 30.
Ra1 {[%clk 00:01:02]} {[%emt 00:00:23]} Rb8 {[%clk 00:00:13]} {[%emt 00:00:13]}
31. b4 {[%clk 00:01:03]} {[%emt 00:00:04]} d4 {[%clk 00:00:15]} {[%emt
00:00:04]} 32. b5 {[%clk 00:01:01]} {[%emt 00:00:07]} d3 {[%clk 00:00:15]}
{[%emt 00:00:04]} 33. Kf2 {[%clk 00:00:55]} {[%emt 00:00:10]} d2 {[%clk
00:00:16]} {[%emt 00:00:05]} 34. Ke2 {[%clk 00:00:59]} {[%emt 00:00:01]} d1=Q+
{[%clk 00:00:18]} {[%emt 00:00:02]} 35. Rxd1 {[%clk 00:01:03]} Bxd1+ {[%clk
00:00:22]} {[%emt 00:00:02]} 36. Kxd1 {[%clk 00:01:07]} cxb5 {[%clk 00:00:26]}
{[%emt 00:00:01]} 0-1